bitfinex-derivatives/quotes_ETHF0:USTF0_20241026
["timestamp","ask_amount","ask_price","bid_price","bid_amount"]
[1729904921686,3.2078,2441.9,2441.5,0.83175]
[1729904921878,3.2078,2441.9,2441.5,0.4216]
[1729904922185,3.2078,2441.9,2441.5,0.83175]
[1729904922389,3.28277015,2442.0,2441.5,0.83175]
[1729904922586,3.28277015,2442.0,2441.6,0.41014]
[1729904922884,3.28277015,2442.0,2441.5,0.4216]
[1729904923081,0.4101,2441.9,2441.5,0.83175]
[1729904924185,0.4101,2441.9,2441.5,0.4216]
[1729904924383,6.08049015,2442.0,2441.5,0.4216]
[1729904924684,6.08049015,2442.0,2441.4,0.8764]
[1729904924685,0.41016,2441.5,2441.4,0.8764]
[1729904925184,2.87269015,2441.8,2441.4,0.8764]
[1729904925185,0.41015,2441.6,2441.4,0.8764]
[1729904925578,2.87269015,2441.8,2441.4,0.8764]
[1729904925785,3.28281015,2441.8,2441.4,0.8764]
[1729904925979,0.41013,2441.7,2441.4,0.8764]
[1729904926384,0.41015,2441.6,2441.4,0.8764]
[1729904926977,0.41015,2441.6,2441.3,3.2078]
[1729904927383,0.85585,2441.6,2441.2,0.41021]
[1729904927578,0.85585,2441.6,2441.2,3.61801]
[1729904927780,0.85585,2441.6,2441.2,3.2078]
[1729904928492,0.85585,2441.6,2441.2,3.61801]
[1729904928889,0.85585,2441.6,2441.2,0.41021]
[1729904929091,0.85585,2441.6,2441.2,3.2078]
[1729904931488,0.4457,2441.6,2441.2,3.618]
[1729904931682,6.08049015,2441.8,2441.2,3.2078]
[1729904931885,0.41016,2441.6,2441.2,3.2078]
[1729904932791,0.41014,2441.7,2441.2,3.618]
[1729904932991,0.41015,2441.6,2441.2,3.2078]
[1729904933696,6.49061015,2441.8,2441.2,3.2078]
[1729904933892,6.49061015,2441.8,2441.3,0.41018]
[1729904934086,6.49061015,2441.8,2441.3,0.4102]
[1729904934294,0.41013,2441.7,2441.3,0.4102]
[1729904935793,0.41013,2441.7,2441.2,3.618]
[1729904936599,0.41014,2441.7,2441.3,0.41019]
[1729904937091,0.41015,2441.6,2441.2,3.618]
[1729904937595,0.41014,2441.7,2441.3,0.41019]
[1729904937997,6.08049015,2441.8,2441.2,3.2078]
[1729904938205,2.87269015,2441.4,2440.9,4.26872616]
[1729904938493,2.87269015,2441.2,2440.9,3.61806]
[1729904938691,3.2078,2441.5,2441.0,0.41024]
[1729904938692,0.41019,2441.4,2441.0,0.41024]
[1729904938891,0.4102,2441.3,2440.9,3.61805]
[1729904939692,0.4102,2441.3,2440.9,3.2078]
[1729904939693,2.87269015,2441.3,2440.9,3.2078]
[1729904940094,0.41022,2441.2,2440.9,3.2078]
[1729904940301,0.41023,2441.1,2440.9,3.2078]
[1729904940601,0.41022,2441.2,2440.9,3.2078]
[1729904940793,0.41024,2441.1,2440.9,3.2078]
[1729904941099,0.41026,2440.9,2440.8,0.8268]
[1729904941292,0.4103,2440.7,2440.6,0.4312]
[1729904941604,0.41034,2440.5,2440.3,0.4275]
[1729904941895,3.28304015,2440.4,2440.3,0.4275]
[1729904942096,0.41038,2440.3,2439.9,3.2078]
[1729904942291,2.87269015,2440.2,2439.9,3.639]
[1729904942796,2.87269015,2440.2,2439.9,3.2078]
[1729904943000,3.28308015,2440.2,2439.9,3.2078]
[1729904943197,2.87269015,2440.2,2439.9,3.2078]
[1729904943401,2.87269015,2440.4,2439.9,3.2078]
[1729904943697,2.87269015,2440.6,2440.1,0.41038]
[1729904943899,2.87269015,2440.8,2440.2,3.6569]
[1729904944098,2.87269015,2440.8,2440.2,4.0769]
[1729904944287,2.87269015,2440.8,2440.6,0.41031]
[1729904944494,2.87269015,2440.8,2440.7,0.4491]
[1729904944693,6.08049015,2441.0,2440.7,0.4491]
[1729904944894,6.08049015,2441.0,2440.7,0.8835]
[1729904945501,6.49074015,2441.0,2440.7,0.8835]
[1729904945802,6.08049015,2441.0,2440.7,0.8835]
[1729904946100,6.08049015,2441.0,2440.8,0.41027]
[1729904946290,6.08049015,2441.0,2440.8,0.424]
[1729904946496,6.08049015,2441.0,2440.8,0.83427]
[1729904946693,6.08049015,2441.0,2440.9,0.41026]
[1729904946694,3.2078,2441.0,2440.9,0.41026]
[1729904946894,2.87269015,2441.4,2441.1,0.41022]
[1729904947195,2.87269015,2441.4,2441.2,0.4378]
[1729904947399,3.2078,2442.2,2441.3,6.08049015]
[1729904947600,3.2078,2442.2,2441.7,0.41013]
[1729904947601,6.52359015,2442.2,2441.7,0.41013]
[1729904947806,2.87269015,2442.0,2441.8,0.4378]
[1729904949102,6.52359015,2442.2,2441.8,0.4378]
[1729904949297,6.52359015,2442.2,2441.8,0.84791]
[1729904949503,6.52359015,2442.2,2441.8,0.4378]
[1729904949504,6.93364015,2442.2,2441.8,0.4378]
[1729904949897,0.41012,2441.8,2441.4,0.424]
[1729904950099,0.41017,2441.5,2441.2,0.413]
[1729904950499,3.2078,2441.7,2441.2,0.413]
[1729904950802,3.92169015,2441.9,2441.3,1.30028]
[1729904950803,2.87269015,2441.9,2441.3,1.30028]
[1729904951105,3.2078,2442.0,2441.3,0.8901]
[1729904951399,3.61788,2442.0,2441.3,0.8901]
[1729904951602,3.2078,2442.0,2441.6,0.41013]
[1729904951801,3.2078,2442.0,2441.7,0.413]
[1729904953209,2.87269015,2441.8,2441.7,0.413]
[1729904953407,6.08049015,2442.0,2441.7,0.413]
[1729904954507,6.49057015,2442.0,2441.7,0.413]
[1729904954902,6.08049015,2442.0,2441.7,0.413]
[1729904955209,6.49058015,2442.0,2441.7,0.413]
[1729904958006,6.49058015,2442.0,2441.4,3.2078]
[1729904958007,0.4101,2441.9,2441.4,3.2078]
[1729904958310,3.61793,2441.7,2441.4,0.411]
[1729904958507,3.2078,2441.7,2441.4,0.411]
[1729904958809,6.49058015,2442.0,2441.4,0.82117]
[1729904959005,6.08049015,2442.0,2441.4,0.411]
[1729904959306,2.87269015,2441.8,2441.4,0.411]
[1729904959909,2.87269015,2441.8,2441.3,0.4474]
[1729904960110,4.46984,2441.7,2441.2,0.4364]
[1729904960309,0.41015,2441.6,2441.2,0.4364]
[1729904961409,4.0597,2441.7,2441.2,0.4364]
[1729904961712,0.41018,2441.4,2441.1,3.2078]
[1729904961906,0.41023,2441.1,2440.9,0.4364]
[1729904962308,3.2078,2441.1,2440.9,0.4364]
[1729904963413,4.50705,2441.0,2440.5,4.06562]
[1729904963706,1.28605,2441.0,2440.5,4.50432]
[1729904964207,3.74849015,2441.0,2440.5,4.094]
[1729904964413,3.74849015,2441.0,2440.5,3.6465]
[1729904964907,2.87269015,2440.8,2440.5,3.2078]
[1729904965114,2.87269015,2440.6,2440.1,0.4174]
[1729904965411,0.41035,2440.4,2440.1,0.4174]
[1729904965811,0.83553,2440.5,2440.1,0.4174]
[1729904966205,0.41031,2440.6,2440.1,0.82779]
[1729904966407,6.08049015,2440.8,2440.1,0.4174]
[1729904966612,6.49078015,2440.8,2440.3,0.41035]
[1729904966811,0.4103,2440.7,2440.4,0.4137]
[1729904967214,6.08049015,2440.8,2440.4,0.4137]
[1729904967509,6.08049015,2440.8,2440.4,0.82404]
[1729904967510,3.2078,2440.8,2440.4,0.82404]
[1729904968619,3.2078,2440.8,2440.1,3.6252]
[1729904968620,0.41029,2440.7,2440.1,3.6252]
[1729904968810,6.08049015,2440.8,2440.1,3.6252]
[1729904969009,0.41032,2440.6,2440.2,0.41038]
[1729904969212,0.41032,2440.6,2440.1,3.6252]
[1729904969213,3.61809,2440.8,2440.1,3.6252]
[1729904969407,3.2078,2440.8,2440.4,3.2078]
[1729904969612,3.2078,2440.8,2440.5,0.4177]
[1729904969920,3.2078,2440.8,2440.5,0.82803]
[1729904970211,3.2078,2440.8,2440.5,0.4177]
[1729904970417,3.61808,2440.8,2440.5,0.4177]
[1729904970612,2.87269015,2440.7,2440.5,0.4177]
[1729904970818,0.41031,2440.6,2440.1,4.03558]
[1729904971020,3.70189015,2440.7,2440.2,0.82807]
[1729904971316,0.41034,2440.5,2440.2,0.4177]
[1729904971515,0.41032,2440.6,2440.2,0.4177]
[1729904971715,3.29159015,2440.7,2440.2,0.4177]
[1729904971716,0.41033,2440.5,2440.2,0.4177]
[1729904972212,0.41035,2440.4,2440.2,0.4177]
[1729904972520,0.41034,2440.5,2440.2,0.4177]
[1729904973020,0.41035,2440.4,2440.2,0.4177]
[1729904973221,0.41034,2440.5,2440.2,0.4177]
[1729904974007,0.41035,2440.4,2440.2,0.4177]
[1729904974211,3.67309015,2440.7,2440.2,0.4177]
[1729904974409,0.41033,2440.5,2440.2,0.4177]
[1729904976318,3.2078,2440.6,2440.2,0.4177]
[1729904976517,0.41033,2440.5,2440.2,0.4177]
[1729904976717,3.2078,2440.6,2440.2,0.4177]
[1729904976922,3.61812,2440.6,2440.2,0.4177]
[1729904977725,3.2078,2440.6,2440.2,0.4177]
[1729904977916,0.41038,2440.3,2440.0,3.2078]
[1729904978118,0.41035,2440.4,2440.0,3.2078]
[1729904978927,3.2078,2440.6,2440.0,3.2078]
[1729904979127,6.08049015,2440.6,2440.0,3.2078]
[1729904979328,3.28309015,2440.1,2439.8,0.84]
[1729904979718,3.28306015,2440.3,2439.8,4.45825]
[1729904979918,0.41037,2440.3,2439.8,4.45825]
[1729904980318,0.41038,2440.2,2439.8,4.45825]
[1729904980524,0.41034,2440.5,2440.0,0.4104]
[1729904980726,3.2078,2440.6,2439.9,0.41042]
[1729904980727,0.41035,2440.4,2439.9,0.41042]
[1729904980929,3.2078,2440.6,2439.8,3.2078]
[1729904980930,2.87269015,2440.3,2439.8,3.2078]
[1729904981132,0.4104,2440.1,2439.8,3.2078]
[1729904981333,0.82009,2440.2,2439.8,3.2078]
[1729904981631,0.41035,2440.4,2439.9,0.85902]
[1729904981825,0.41033,2440.5,2440.0,0.4104]
[1729904982425,0.41035,2440.4,2439.9,1.68702]
[1729904982930,2.87269015,2440.5,2439.9,1.2766]
[1729904982931,0.41037,2440.3,2439.9,1.2766]
[1729904983327,2.87269015,2440.5,2439.9,1.2766]
[1729904983527,0.41035,2440.4,2439.9,1.2766]
[1729904983837,0.41035,2440.4,2439.9,1.68702]
[1729904984634,2.87269015,2440.3,2439.9,1.2766]
[1729904984936,0.4104,2440.1,2439.9,0.8666]
[1729904985335,0.41041,2440.0,2439.8,3.2078]
[1729904987236,6.08049015,2440.3,2439.8,3.2078]
[1729904987436,0.41039,2440.2,2439.9,0.8585]
[1729904987641,0.4104,2440.1,2439.9,0.8585]
[1729904988040,6.08049015,2440.3,2439.9,0.8585]
[1729904988242,0.41039,2440.2,2439.9,0.8585]
[1729904988432,6.08049015,2440.3,2439.9,0.8585]
[1729904988936,0.4104,2440.1,2439.9,0.8585]
[1729904989728,0.41039,2440.2,2439.9,0.8585]
[1729904990235,0.41038,2440.2,2439.9,0.8585]
[1729904990834,0.4104,2440.1,2439.9,0.8585]
[1729904991738,2.87269015,2440.3,2439.9,0.8585]
[1729904991739,0.41039,2440.2,2439.9,0.8585]
[1729904992142,0.4104,2440.1,2439.9,0.8585]
[1729904994337,0.41039,2440.2,2439.9,0.8585]
[1729904995136,2.87269015,2440.0,2439.8,3.2078]
[1729904995541,3.28308015,2440.2,2439.9,0.4414]
[1729904996042,0.41039,2440.2,2439.9,0.4414]
[1729904997243,3.61814,2440.5,2440.0,0.4104]
[1729904997433,3.61814,2440.5,2440.1,0.8448]
[1729904997738,3.2078,2440.5,2440.1,1.25519]
[1729904997946,2.87269015,2440.6,2440.1,4.0526]
[1729904998541,0.41034,2440.5,2440.1,4.0526]
[1729904998837,3.28304015,2440.4,2440.1,0.4303]
[1729904999448,2.87269015,2440.4,2440.1,0.4303]
[1729905000046,2.87269015,2440.6,2440.1,0.4303]
[1729905000450,0.41035,2440.4,2440.1,0.4303]
[1729905000752,2.87269015,2440.4,2440.1,0.4303]
[1729905000953,0.41038,2440.2,2440.1,0.4303]
[1729905001147,0.4104,2440.1,2439.9,0.8952]
[1729905001338,3.28308015,2440.2,2439.9,1.3453]
[1729905002253,0.4104,2440.1,2439.9,1.3453]
[1729905003555,2.87269015,2440.2,2439.9,1.3453]
[1729905003853,0.4104,2440.1,2439.9,1.3453]
[1729905004653,2.87269015,2440.2,2439.9,1.3453]
[1729905004849,3.2078,2440.3,2439.9,1.3453]
[1729905005050,3.2078,2440.3,2440.0,0.41041]
[1729905005253,0.41033,2440.5,2440.0,0.41041]
[1729905005449,6.08049015,2440.7,2439.9,1.3453]
[1729905005652,0.41034,2440.5,2440.1,3.2078]
[1729905006146,2.87269015,2440.4,2439.9,1.3453]
[1729905006350,0.41037,2440.3,2439.9,1.3453]
[1729905006745,0.8039,2440.6,2439.9,1.3453]
[1729905006746,2.87269015,2440.2,2439.9,1.3453]
[1729905007263,0.41041,2440.1,2439.9,1.3453]
[1729905007444,2.87269015,2440.2,2439.9,1.3453]
[1729905007646,0.41041,2440.0,2439.9,1.3453]
[1729905007953,2.87269015,2440.2,2439.9,1.3453]
[1729905008158,0.4104,2440.1,2439.9,1.3453]
[1729905009060,2.87269015,2440.2,2439.9,1.3453]
[1729905009357,0.4104,2440.1,2439.9,1.3453]
[1729905010354,0.41041,2440.0,2439.9,1.3453]
[1729905010661,0.4104,2440.1,2439.9,1.3453]
[1729905011060,2.87269015,2440.2,2439.9,1.3453]
[1729905011258,0.4104,2440.1,2439.9,1.3453]
[1729905011447,2.87269015,2440.2,2439.9,1.3453]
[1729905011655,3.28308015,2440.2,2439.9,1.3453]
[1729905011857,0.4104,2440.1,2439.9,1.3453]
[1729905012571,6.08049015,2440.4,2439.9,1.75573]
[1729905012759,5.18735815,2440.5,2439.9,1.3453]
[1729905013060,5.18735815,2440.5,2440.0,0.4104]
[1729905013061,0.41034,2440.5,2440.0,0.4104]
[1729905013465,3.67659015,2440.6,2439.9,1.3453]
[1729905013651,3.28305015,2440.4,2439.9,1.75572]
[1729905013850,0.4104,2440.1,2439.9,1.3453]
[1729905014265,2.87269015,2440.2,2439.9,1.3453]
[1729905014562,3.28308015,2440.2,2439.9,1.3453]
[1729905016059,0.4104,2440.1,2439.9,1.3453]
[1729905016558,3.28308015,2440.2,2439.9,1.3453]
[1729905017660,0.41039,2440.2,2439.9,1.3453]
[1729905018160,0.41036,2440.3,2439.9,1.3453]
[1729905018358,0.4104,2440.1,2439.9,1.3453]
[1729905018759,10.17889015,2440.0,2439.5,1.06092616]
[1729905018958,2.87269015,2439.6,2439.3,0.8536]
[1729905019256,3.28317015,2439.6,2439.3,0.8536]
[1729905019456,2.87269015,2439.6,2439.3,0.8536]
[1729905019659,3.70694015,2439.8,2439.3,1.26413]
[1729905019854,3.29649015,2439.8,2439.3,0.8536]
[1729905020257,0.41047,2439.7,2439.3,0.8536]
[1729905020459,3.29649015,2439.8,2439.2,3.2078]
[1729905020759,0.41048,2439.6,2439.3,0.4545]
[1729905021155,0.41051,2439.4,2439.3,0.4545]
[1729905021367,0.4106,2438.9,2438.8,1.06092616]
[1729905021564,3.2078,2439.4,2438.5,0.4391]
[1729905021565,2.87269015,2439.0,2438.5,0.4391]
[1729905021757,6.08049015,2438.6,2438.0,3.2078]
[1729905021962,2.87269015,2438.1,2437.8,0.41077]
[1729905022263,3.2078,2438.6,2437.7,4.26872616]
[1729905022264,3.2078,2438.6,2438.2,0.41071]
[1729905022455,3.30319015,2438.8,2438.3,0.4545]
[1729905022657,3.71381015,2438.8,2438.3,0.4545]
[1729905022853,3.71381015,2438.8,2438.3,3.6623]
[1729905022854,0.4305,2438.8,2438.3,3.6623]
[1729905023057,0.4305,2438.8,2438.4,0.4452]
[1729905023856,3.30319015,2438.8,2438.4,0.4452]
[1729905024662,2.87269015,2438.8,2438.4,0.85587]
[1729905025163,2.87269015,2438.8,2438.4,0.4452]
[1729905025362,3.28331015,2438.8,2438.4,0.4452]
[1729905025768,2.87269015,2438.8,2438.4,0.4452]
[1729905026768,2.87269015,2438.8,2438.4,0.85588]
[1729905027070,3.28331015,2438.8,2438.4,0.4452]
[1729905027271,3.28331015,2438.8,2437.8,0.41078]
[1729905027272,0.41069,2438.4,2437.8,0.41078]
[1729905027571,3.28338015,2438.4,2437.8,0.85618]
[1729905027769,0.4184,2438.3,2437.9,0.446]
[1729905028670,0.4184,2438.3,2437.9,0.85676]
[1729905029564,0.4184,2438.3,2437.9,0.446]
[1729905029767,2.87269015,2438.1,2437.6,0.4174]
[1729905030067,2.87269015,2438.1,2437.7,0.4369]
[1729905030068,3.28342015,2438.1,2437.7,0.4369]
[1729905030364,2.87269015,2438.1,2437.7,0.4369]
[1729905030567,0.8291,2438.3,2437.7,0.84769]
[1729905031170,3.2078,2438.5,2438.0,3.2078]
[1729905031480,2.87269015,2438.6,2438.1,0.865]
[1729905031665,2.87269015,2438.6,2438.2,0.4369]
[1729905031866,3.31999015,2438.8,2438.3,0.4107]
[1729905032065,2.87269015,2438.6,2438.2,0.4369]
[1729905033878,2.87269015,2438.6,2438.2,0.84761]
[1729905034267,2.87269015,2438.6,2438.3,0.41069]
[1729905034673,2.87269015,2438.6,2438.2,0.4369]
[1729905034876,2.87269015,2438.6,2438.3,0.41069]
[1729905035571,2.87269015,2438.6,2438.2,0.4369]
[1729905035766,2.87269015,2438.6,2438.3,0.41069]
[1729905036472,2.87269015,2438.6,2438.3,3.61849]
[1729905036971,2.87269015,2438.6,2438.3,3.2078]
[1729905037172,2.87269015,2438.6,2438.3,3.6185]
[1729905038476,2.87269015,2439.0,2438.3,7.3086]
[1729905038672,2.87269015,2439.0,2438.5,0.41065]
[1729905039176,2.87269015,2439.0,2438.6,0.429]
[1729905039872,3.28327015,2439.0,2438.6,0.429]
[1729905040470,2.87269015,2439.0,2438.6,0.429]
[1729905040674,0.41058,2438.9,2438.7,0.4312]
[1729905040977,3.28326015,2439.0,2438.7,0.4312]
[1729905041975,0.41058,2438.9,2438.7,0.4312]
[1729905042178,3.28326015,2439.0,2438.7,0.4312]
[1729905044874,2.87269015,2439.0,2438.7,0.4312]
[1729905045075,3.28326015,2439.0,2438.7,0.4312]
[1729905045279,3.28325015,2439.0,2438.7,0.4312]
[1729905045472,2.87269015,2439.0,2438.7,0.4312]
[1729905045674,4.0321,2439.2,2438.7,0.8418]
[1729905045675,1.23483,2439.2,2438.7,0.8418]
[1729905045883,0.41052,2439.3,2438.8,0.41058]
[1729905046276,0.85182,2439.3,2438.8,0.41058]
[1729905046477,0.4413,2439.3,2438.7,0.8762]
[1729905046681,0.85181,2439.3,2438.8,0.41058]
[1729905047078,0.4413,2439.3,2438.9,3.2078]
[1729905047580,0.85182,2439.3,2438.9,3.61837]
[1729905047781,0.85182,2439.3,2438.9,3.2078]
[1729905047974,0.4413,2439.3,2438.9,3.61837]
[1729905049678,0.4413,2439.3,2438.9,3.2078]
[1729905049882,0.4413,2439.3,2438.9,3.61837]
[1729905050477,3.627,2439.5,2438.9,3.2078]
[1729905050690,0.41049,2439.4,2438.9,3.61836]
[1729905050987,3.6266,2439.5,2438.9,3.61836]
[1729905050988,4.03708,2439.5,2439.0,0.41055]
[1729905051384,4.03708,2439.5,2439.1,0.4384]
[1729905051683,3.6266,2439.5,2439.2,0.4537]
[1729905051880,1.02592,2440.2,2439.2,0.4537]
[1729905051881,3.5895,2439.8,2439.2,3.6615]
[1729905052080,0.41045,2439.6,2439.3,0.4266]
[1729905052481,0.41044,2439.7,2439.3,0.4266]
[1729905052886,3.5895,2439.8,2439.3,0.4266]
[1729905053087,3.2078,2439.8,2439.3,0.4266]
[1729905053283,0.41039,2440.0,2439.5,3.61826]
[1729905053488,0.26396778,2440.1,2439.8,3.2078]
[1729905053684,6.08049015,2440.3,2439.9,0.4408]
[1729905053685,3.2078,2440.3,2439.9,0.4408]
[1729905053989,0.84663,2440.4,2439.9,0.8512]
[1729905054188,0.4363,2440.4,2440.0,0.41038]
[1729905054389,0.4363,2440.4,2439.9,0.4408]
[1729905054577,0.4363,2440.4,2440.0,0.41038]
[1729905054983,0.4363,2440.4,2440.1,0.4254]
[1729905055379,0.84662,2440.4,2440.1,0.4254]
[1729905055595,0.4363,2440.4,2440.1,0.4254]
[1729905056687,6.90077015,2440.7,2440.1,0.83575]
[1729905056889,0.41024,2440.9,2440.3,3.28302015]
[1729905057092,3.70809015,2441.1,2440.5,0.4103]
[1729905057290,0.4536,2441.1,2440.5,2.87269015]
[1729905057586,4.32587015,2441.3,2440.8,0.41025]
[1729905057784,0.41015,2441.4,2440.9,0.428]
[1729905057985,0.41015,2441.4,2440.9,3.71069015]
[1729905057986,0.41016,2441.4,2440.9,3.71069015]
[1729905058186,0.41014,2441.5,2440.9,4.12092015]
[1729905058586,3.2078,2441.6,2441.0,3.2078]
[1729905058784,4.11820015,2441.7,2441.1,0.41019]
[1729905058982,3.73640015,2441.7,2441.1,0.41019]
[1729905059184,0.41012,2441.6,2441.0,3.61801]
[1729905059385,3.73640015,2441.7,2441.1,0.41019]
[1729905059586,0.41013,2441.6,2441.0,3.61801]
[1729905059785,3.32629015,2441.7,2441.1,0.4102]
[1729905059786,3.73639015,2441.7,2441.1,0.4102]
[1729905060186,3.32629015,2441.7,2441.0,3.2078]
[1729905060389,2.87269015,2441.3,2440.9,0.838]
[1729905060596,2.87269015,2441.1,2440.4,3.2078]
[1729905060790,2.87269015,2441.1,2440.2,0.4488]
[1729905061091,0.41027,2440.7,2440.2,0.4488]
[1729905061689,3.28295015,2440.8,2440.2,0.4488]
[1729905062195,0.41021,2441.1,2440.4,3.2078]
[1729905062495,0.41018,2441.3,2440.7,6.08049015]
[1729905062687,0.41018,2441.3,2440.8,0.4435]
[1729905063195,4.32381015,2441.6,2441.0,3.61801]
[1729905063395,3.61791,2441.7,2441.1,3.28289015]
[1729905063701,3.61791,2441.7,2441.1,3.71969015]
[1729905063894,0.41012,2441.6,2441.1,3.30949015]
[1729905064199,0.41013,2441.5,2441.1,0.4368]
[1729905064589,0.41012,2441.6,2441.1,0.4368]
[1729905065197,0.41014,2441.5,2441.1,0.4368]
[1729905065491,0.41012,2441.6,2441.1,0.4368]
[1729905065995,0.41015,2441.5,2441.0,3.2078]
[1729905066591,0.41015,2441.5,2441.0,3.6463]
[1729905067604,3.28282015,2441.6,2441.0,4.05652]
[1729905067798,0.41014,2441.5,2441.0,3.6463]
[1729905068098,2.87269015,2441.6,2441.0,3.6463]
[1729905068300,0.41012,2441.6,2441.1,0.4102]
[1729905068498,3.2078,2441.7,2441.1,0.4102]
[1729905068798,3.61791,2441.7,2441.1,0.4102]
[1729905069494,3.2078,2441.7,2441.0,3.6463]
[1729905069692,2.87269015,2441.6,2441.0,3.6463]
[1729905069999,0.41019,2441.2,2441.0,3.2078]
[1729905070999,0.41017,2441.3,2441.0,3.2078]
[1729905071396,0.41014,2441.5,2441.0,3.2078]
[1729905071602,0.41013,2441.6,2441.0,3.61801]
[1729905071800,3.2078,2441.7,2441.2,2.87269015]
[1729905072096,0.41003,2442.1,2441.4,2.87269015]
[1729905072305,0.41003,2442.2,2441.7,2.87269015]
[1729905072489,3.29079015,2442.4,2441.8,0.4539]
[1729905072893,0.41005,2442.0,2441.8,0.4539]
[1729905073203,0.41004,2442.1,2441.8,0.4539]
[1729905074894,3.29079015,2442.4,2441.8,0.4539]
[1729905075298,0.41004,2442.1,2441.8,0.4539]
[1729905076799,0.41006,2442.0,2441.8,0.4539]
[1729905079807,0.4101,2441.7,2441.5,0.4509]
[1729905079997,0.4101,2441.7,2441.6,0.4107]
[1729905080497,0.41014,2441.5,2441.0,2.87269015]
[1729905080693,0.41014,2441.5,2441.3,0.4433]
[1729905081490,0.41013,2441.6,2441.3,0.4433]
[1729905082703,0.41014,2441.5,2441.3,0.4433]
[1729905083299,0.41015,2441.4,2441.3,0.4433]
[1729905084103,6.08049015,2441.7,2440.9,3.2078]
[1729905084404,0.41016,2441.4,2440.8,4.17893015]
[1729905084604,0.41019,2441.2,2440.9,0.4334]
[1729905084907,6.08049015,2441.7,2440.9,0.4334]
[1729905085612,6.08049015,2441.7,2440.8,0.896]
[1729905085613,0.41022,2441.0,2440.8,0.896]
[1729905085806,2.87269015,2441.3,2440.8,0.896]
[1729905086011,4.13979015,2441.3,2440.8,0.896]
[1729905086505,0.41028,2440.7,2440.2,6.92423015]
[1729905086707,0.41028,2440.7,2440.3,0.8499]
[1729905087010,0.41026,2440.8,2440.3,0.8499]
[1729905087199,6.08049015,2441.1,2440.3,0.8499]
[1729905087401,0.41024,2440.9,2440.4,2.87269015]
[1729905087609,3.2078,2441.1,2440.4,2.87269015]
[1729905088010,0.41022,2441.0,2440.4,2.87269015]
[1729905088309,0.41027,2440.8,2440.4,2.87269015]
[1729905088509,3.2078,2441.1,2440.4,2.87269015]
[1729905088510,0.41027,2440.7,2440.4,2.87269015]
[1729905089105,0.41026,2440.8,2440.4,2.87269015]
[1729905090213,0.41026,2440.8,2440.4,6.08049015]
[1729905092301,0.41028,2440.7,2440.4,3.2078]
[1729905092702,2.87269015,2441.1,2440.4,3.2078]
[1729905092703,0.41029,2440.6,2440.4,3.2078]
[1729905092908,0.41027,2440.7,2440.4,3.2078]
[1729905093708,3.2078,2440.8,2440.3,0.4343]
[1729905093913,0.41033,2440.4,2440.0,0.8615]
[1729905094804,0.4114,2440.6,2440.0,6.94199015]
[1729905095003,0.4114,2440.6,2440.0,7.35237015]
[1729905095004,0.41031,2440.5,2440.0,7.35237015]
[1729905096716,3.2078,2440.6,2440.2,2.87269015]
[1729905097112,0.41028,2440.7,2440.3,0.4478]
[1729905097308,0.41026,2440.8,2440.3,0.85814]
[1729905097513,0.41026,2440.8,2440.3,4.06594]
[1729905097713,3.6367,2441.0,2440.4,3.28301015]
[1729905097714,0.41024,2440.9,2440.4,3.28301015]
[1729905098015,0.41023,2440.9,2440.5,0.8924]
[1729905098611,0.41026,2440.8,2440.5,0.8924]
[1729905099211,1.2452,2441.2,2440.5,0.8924]
[1729905099408,0.41025,2440.9,2440.5,0.8924]
[1729905099612,3.2078,2441.4,2440.8,2.87269015]
[1729905099917,0.41018,2441.3,2440.8,3.28293015]
[1729905100215,0.41017,2441.3,2440.9,0.4363]
[1729905100418,0.41016,2441.4,2441.0,0.417]
[1729905100620,0.41016,2441.4,2441.1,0.4477]
[1729905101024,0.41018,2441.3,2441.1,0.4477]
[1729905101217,0.41018,2441.2,2441.1,0.4477]
[1729905102818,0.41018,2441.3,2441.1,0.4477]
[1729905103408,0.41018,2441.2,2441.1,0.4477]
[1729905103607,0.4128,2441.5,2441.1,0.4477]
[1729905103608,0.41018,2441.3,2441.1,0.4477]
[1729905103807,0.4128,2441.5,2441.1,0.4477]
[1729905103808,0.41018,2441.2,2441.1,0.4477]
[1729905104518,0.41018,2441.3,2441.1,0.4477]
[1729905105220,0.41015,2441.4,2441.1,0.4477]
[1729905105417,0.41018,2441.3,2441.1,0.4477]
[1729905106117,4.0134,2441.7,2441.1,0.4477]
[1729905106426,0.41014,2441.5,2441.3,2.87269015]
[1729905108226,3.2078,2441.7,2441.4,6.96869015]
[1729905108532,3.61791,2441.7,2441.5,0.4215]
[1729905109228,0.41012,2441.6,2441.5,0.4215]
[1729905109429,3.61792,2441.7,2441.5,0.4215]
[1729905109729,0.41012,2441.6,2441.5,0.4215]
[1729905110223,3.61791,2441.7,2441.5,0.4215]
[1729905110621,0.41012,2441.6,2441.5,0.4215]
[1729905111321,4.096,2441.6,2441.1,3.32039015]
[1729905111628,0.41018,2441.3,2441.1,3.32039015]
[1729905111827,0.41015,2441.4,2441.1,3.32039015]
[1729905112025,0.41018,2441.3,2441.1,3.32039015]
[1729905112226,0.4349,2441.5,2441.1,3.32039015]
[1729905112425,0.41018,2441.2,2441.1,0.4477]
[1729905112933,0.4349,2441.5,2440.9,2.87269015]
[1729905113118,0.4349,2441.5,2440.9,3.28379015]
[1729905113319,0.41019,2441.2,2440.9,3.28379015]
[1729905114631,0.4102,2441.1,2440.9,3.28379015]
[1729905115222,0.4349,2441.5,2440.9,3.28379015]
[1729905115434,0.41021,2441.1,2440.9,3.28379015]
[1729905117429,0.4349,2441.5,2440.9,3.28379015]
[1729905117631,0.41019,2441.2,2440.9,3.28379015]
[1729905118423,3.2078,2441.3,2440.9,3.28379015]
[1729905118424,0.41021,2441.1,2440.9,3.28379015]
[1729905119733,0.4349,2441.5,2440.9,3.28379015]